lending/lending_fUSD_20240711
["ID","MTS","AMOUNT","RATE_DAILY","PERIOD"]
[331729022,1720706488160,500.0,0.00027,120]
[331729023,1720706489010,500.0,0.00027,120]
[331729024,1720706490324,500.0,0.00027,120]
[331729025,1720706491256,500.0,0.00027,120]
[331729026,1720706492130,500.0,0.00027,120]
[331729027,1720706492999,500.0,0.00027,120]
[331729028,1720706493912,500.0,0.00027,120]
[331729029,1720706494642,500.0,0.00027,120]
[331729030,1720706495403,500.0,0.00027,120]
[331729031,1720706496266,500.0,0.00027,120]
[331729032,1720706497118,500.0,0.00027,120]
[331729033,1720706498188,500.0,0.00027,120]
[331729034,1720706498931,500.0,0.00027,120]
[331729035,1720706499745,500.0,0.00027,120]
[331729036,1720706500560,500.0,0.00027,120]
[331729037,1720706500917,688.15957182,0.00011199,2]
[331729038,1720706501676,500.0,0.00027,120]
[331729039,1720706502436,500.0,0.00027,120]
[331729040,1720706503339,500.0,0.00027,120]
[331729041,1720706504825,500.0,0.00027,120]
[331729042,1720706505254,500.0,0.00027,120]
[331729043,1720706506115,500.0,0.00027,120]
[331729044,1720706507266,500.0,0.00027,120]
[331729045,1720706508142,500.0,0.00027,120]
[331729046,1720706509035,500.0,0.00027,120]
[331729047,1720706510035,500.0,0.00027,120]
[331729048,1720706510875,500.0,0.00027,120]
[331729049,1720706511743,500.0,0.00027,120]
[331729050,1720706512742,500.0,0.00027,120]
[331729051,1720706513587,500.0,0.00027,120]
[331729052,1720706514505,500.0,0.00027,120]
[331729053,1720706514717,-10000.0,0.00011982,2]
[331729054,1720706515130,12365.60163311,0.00011199,2]
[331729055,1720706515540,500.0,0.00027,120]
[331729056,1720706516229,500.0,0.00027,120]
[331729057,1720706517092,500.0,0.00027,120]
[331729058,1720706518004,500.0,0.00027,120]
[331729059,1720706519030,500.0,0.00027,120]
[331729060,1720706519896,500.0,0.00027,120]
[331729061,1720706520747,500.0,0.00027,120]
[331729062,1720706521682,500.0,0.00027,120]
[331729063,1720706521826,651.44479338,0.00011199,2]
[331729064,1720706522641,500.0,0.00027,120]
[331729065,1720706523515,500.0,0.00027,120]
[331729066,1720706524308,500.0,0.00027,120]
[331729067,1720706525550,500.0,0.00027,120]
[331729068,1720706526046,500.0,0.00027,120]
[331729069,1720706526925,500.0,0.00027,120]
[331729070,1720706528374,500.0,0.00027,120]
[331729071,1720706528997,500.0,0.00027,120]
[331729072,1720706530398,500.0,0.00027,120]
[331729073,1720706530595,1200.0,0.0001126,2]
[331729074,1720706531608,500.0,0.00027,120]
[331729075,1720706532442,647.48926306,0.0001126,2]
[331729076,1720706533188,500.0,0.00027,120]
[331729077,1720706534363,500.0,0.00027,120]
[331729078,1720706535881,500.0,0.00027,120]
[331729079,1720706535953,500.0,0.00027,120]
[331729080,1720706536205,718.81426358,0.00011199,2]
[331729081,1720706536321,500.0,0.00027,120]
[331729082,1720706537587,500.0,0.00027,120]
[331729083,1720706537984,404.22,0.00010775,2]
[331729084,1720706538442,500.0,0.00027,120]
[331729085,1720706539307,500.0,0.00027,120]
[331729086,1720706540162,500.0,0.00027,120]
[331729087,1720706541047,500.0,0.00027,120]
[331729088,1720706542287,500.0,0.00027,120]
[331729089,1720706543081,500.0,0.00027,120]
[331729090,1720706543856,500.0,0.00027,120]
[331729091,1720706544605,500.0,0.00027,120]
[331729092,1720706545042,9246.73344542,0.00011199,2]
[331729093,1720706545379,500.0,0.00027,120]
[331729094,1720706545630,647.95522269,0.00011199,2]
[331729095,1720706546385,500.0,0.00027,120]
[331729096,1720706547229,500.0,0.00027,120]
[331729097,1720706548148,500.0,0.00027,120]
[331729098,1720706548981,500.0,0.00027,120]
[331729099,1720706549782,500.0,0.00027,120]
[331729100,1720706550862,500.0,0.00027,120]
[331729101,1720706551697,500.0,0.00027,120]
[331729102,1720706552592,500.0,0.00027,120]
[331729103,1720706553435,500.0,0.00027,120]
[331729104,1720706562308,500.0,0.00027,120]
[331729105,1720706563288,500.0,0.00027,120]
[331729106,1720706564433,500.0,0.00027,120]
[331729107,1720706564967,10998.97795468,0.00011199,2]
[331729108,1720706565487,500.0,0.00027,120]
[331729109,1720706569358,500.0,0.00027,120]
[331729110,1720706570150,500.0,0.00027,120]
[331729111,1720706570901,500.0,0.00027,120]
[331729112,1720706571900,500.0,0.00027,120]
[331729113,1720706572517,500.0,0.00027,120]
[331729114,1720706573440,500.0,0.00027,120]
[331729115,1720706574210,500.0,0.00027,120]
[331729116,1720706575038,500.0,0.00027,120]
[331729117,1720706575855,500.0,0.00027,120]
[331729118,1720706577638,500.0,0.00027,120]
[331729119,1720706584842,352.13135975,0.00027,120]
[331729122,1720706706126,515.63745664,0.00011199,2]
[331729123,1720706707501,11484.36254336,0.00011199,2]
[331729124,1720706707525,7256.04580863,0.00011199,2]
[331729125,1720706722143,533.66826194,0.00011199,2]
[331729126,1720706738920,193.71936803,0.00011199,2]
[331729127,1720706756955,364.62323399,0.00011199,2]
[331729128,1720706759729,843.07083478,0.00011199,2]
[331729129,1720706767495,5605.08175338,0.00011199,2]
[331729130,1720706784793,236.54372154,0.00011199,2]
[331729131,1720706809908,207.91791673,0.00011199,2]
[331729132,1720706833601,156.15294585,0.00011199,2]
[331729133,1720706851704,150.0,0.00022271,120]
[331729134,1720706876369,3393.89432477,0.00011199,2]
[331729135,1720706910864,150.0,0.0002405,120]
[331729136,1720706955641,10526.14461455,0.00011199,2]
[331729137,1720706957514,5605.08175338,0.00011199,2]
[331729138,1720706961800,158.73,9.777e-05,2]
[331729139,1720706964519,24725.94279289,0.00011199,2]
[331729140,1720706965397,10526.14461455,0.00011199,2]
[331729141,1720706980958,3000.0,0.00027,120]
[331729142,1720706991005,304.72006586,0.00011199,2]
[331729143,1720707009898,155.0,0.00011199,2]
[331729144,1720707027408,3076.35589275,0.00011199,2]
[331729145,1720707027789,174.15,9.815e-05,2]
[331729146,1720707031643,150.0,0.00022232,120]
[331729152,1720707032037,-319.07295113,0.00011982,2]
[331729153,1720707032047,-500.0,0.00012082,2]
[331729154,1720707032191,-1300.0,0.00012082,2]
[331729155,1720707032206,-653.32992506,0.00012082,2]
[331729156,1720707032218,-546.67007494,0.00012082,2]
[331729157,1720707032227,-181.49,0.00012232,2]
[331729158,1720707032237,-155.28741896,0.00012314,2]
[331729159,1720707032247,-250.0,0.00012325,2]
[331729160,1720707032256,-300.0,0.00012599,2]
[331729161,1720707032266,-150.0,0.000126,2]
[331729162,1720707032276,-150.0,0.00012618,2]
[331729163,1720707032286,-150.0,0.00012635,2]
[331729164,1720707032296,-150.0,0.00012653,2]
[331729165,1720707032306,-150.0,0.00012671,2]
[331729166,1720707032316,-1115.76632851,0.0001268,2]
[331729168,1720707032328,-641.20945897,0.0001268,2]
[331729176,1720707032682,-26.18333996,0.0001268,2]
[331729177,1720707032694,-11024.25087256,0.0001268,2]
[331729178,1720707032704,-150.0,0.00012689,2]
[331729179,1720707032713,-299.99,0.00012689,2]
[331729180,1720707032723,-150.0,0.00012706,2]
[331729181,1720707032732,-150.0,0.00012724,2]
[331729182,1720707032742,-150.0,0.00012742,2]
[331729183,1720707032751,-150.0,0.00012759,2]
[331729184,1720707032761,-200.0,0.00012764,2]
[331729185,1720707032771,-150.0,0.00012777,2]
[331729186,1720707032780,-150.0,0.00012795,2]
[331729187,1720707032790,-150.0,0.00012813,2]
[331729188,1720707032799,-150.0,0.0001283,2]
[331729189,1720707032808,-150.0,0.00012848,2]
[331729190,1720707032818,-150.0,0.00012866,2]
[331729191,1720707032828,-1000.0,0.00012867,2]
[331729192,1720707032837,-150.0,0.00012884,2]
[331729193,1720707032847,-150.0,0.00012901,2]
[331729194,1720707032856,-150.0,0.00012901,2]
[331729195,1720707032866,-500.0,0.00012904,2]
[331729196,1720707032875,-1300.0,0.00012904,2]
[331729197,1720707032888,-500.0,0.00012904,2]
[331729198,1720707032906,-1200.0,0.00012904,2]
[331729199,1720707032916,-2747.13,0.00012904,2]
[331729200,1720707032926,-150.0,0.00012919,2]
[331729201,1720707032935,-150.0,0.00012937,2]
[331729202,1720707032951,-150.0,0.00012954,2]
[331729203,1720707032960,-1250.0,0.00013,2]
[331729204,1720707032970,-1627.07288973,0.00013,2]
[331729205,1720707032981,-160.0513,0.00013008,2]
[331729206,1720707032991,-404.22,0.00013039,2]
[331729207,1720707033000,-241.61284913,0.00013128,2]
[331729208,1720707033009,-311.79435307,0.00013128,2]
[331729209,1720707033018,-1569.43628346,0.00013128,2]
[331729210,1720707033028,-889.498354,0.00013128,2]
[331729211,1720707033036,-438.71170098,0.00013128,2]
[331729212,1720707033046,-10662.61609509,0.00013472,2]
[331729213,1720707033056,-193.97613004,0.00013472,2]
[331729214,1720707033066,-945.89130315,0.00013472,2]
[331729215,1720707033075,-264.7511771,0.00013472,2]
[331729216,1720707033085,-600.0,0.00013472,2]
[331729217,1720707033096,-500.0,0.00013474,2]
[331729218,1720707033105,-155.63127491,0.00013516,2]
[331729219,1720707033115,-155.20586533,0.00013543,2]
[331729220,1720707033126,-6570.72535741,0.00013574,2]
[331729221,1720707033136,-304.72006586,0.00013574,2]
[331729222,1720707033147,-1251.0,0.0001366,2]
[331729223,1720707033158,-444.0,0.0001366,2]
[331729224,1720707033168,-451.146,0.0001366,2]
[331729225,1720707033179,-622.653,0.0001366,2]
[331729226,1720707033189,-809.0,0.0001366,2]
[331729227,1720707033199,-1224.75,0.00013698,2]
[331729228,1720707033208,-500.0,0.00013698,2]
[331729229,1720707033223,-172.66418962,0.00013698,2]
[331729230,1720707033233,-1517.89,0.00013698,2]
[331729231,1720707033243,-1276.9,0.00013698,2]
[331729232,1720707033252,-1845.74,0.00013698,2]
[331729233,1720707033262,-1118.41,0.00013698,2]
[331729234,1720707033272,-247.98093113,0.00013698,2]
[331729235,1720707033281,-1490.92,0.00013698,2]
[331729236,1720707033290,-285.37049916,0.00013698,2]
[331729237,1720707033300,-1175.21,0.00013698,2]
[331729238,1720707033311,-1334.25,0.00013698,2]
[331729239,1720707033320,-871.01,0.00013698,2]
[331729240,1720707033331,-540.15961342,0.00013698,2]
[331729241,1720707033340,-503.97979421,0.00013698,2]
[331729242,1720707033351,-1676.83,0.00013698,2]
[331729243,1720707033361,-500.0,0.00013698,2]
[331729244,1720707033371,-212.09,0.00013698,2]
[331729245,1720707033381,-1665.83,0.00013698,2]
[331729246,1720707033391,-505.63861923,0.00013698,2]
[331729247,1720707033401,-1671.7,0.00013698,2]
[331729248,1720707033411,-425.23,0.00013698,7]
[331729249,1720707033420,-1254.44,0.00013698,2]
[331729250,1720707033430,-500.0,0.00013698,2]
[331729251,1720707033440,-500.0,0.00013698,2]
[331729252,1720707033450,-500.93908722,0.00013698,2]
[331729253,1720707033460,-500.85256423,0.00013698,2]
[331729254,1720707033470,-1467.21,0.00013698,2]
[331729255,1720707033480,-527.15515063,0.00013698,2]
[331729256,1720707033490,-500.0,0.00013698,2]
[331729257,1720707033499,-568.31068724,0.00013698,2]
[331729258,1720707033510,-509.83112036,0.00013698,2]
[331729259,1720707033520,-1380.26,0.00013698,2]
[331729260,1720707033531,-1394.26,0.00013698,2]
[331729261,1720707033541,-1573.77,0.00013698,2]
[331729262,1720707033552,-1217.94,0.00013698,2]
[331729263,1720707033562,-512.83848967,0.00013698,2]
[331729264,1720707033572,-1239.09,0.00013698,2]
[331729265,1720707033582,-500.0,0.00013698,2]
[331729266,1720707033592,-1252.4,0.00013698,2]
[331729267,1720707033603,-950.61,0.00013698,2]
[331729268,1720707033612,-1081.7,0.00013698,2]
[331729269,1720707033622,-861.96,0.00013698,2]
[331729270,1720707033632,-1218.57,0.00013698,2]
[331729271,1720707033642,-958.87,0.00013698,2]
[331729272,1720707033653,-1486.02966452,0.00013699,2]
[331729273,1720707033663,-2284.8,0.00013699,2]
[331729274,1720707033673,-250.0,0.00013699,2]
[331729275,1720707033682,-659.5413516,0.00013704,2]
[331729276,1720707033693,-3367.13454146,0.00013708,2]
[331729277,1720707033704,-1423.0828308,0.00013708,2]
[331729278,1720707033714,-231.90170231,0.00013708,2]
[331729279,1720707033724,-500.0,0.00013726,2]
[331729280,1720707033734,-1300.0,0.00013726,2]
[331729281,1720707033744,-1200.0,0.00013726,2]
[331729282,1720707033754,-1423.08283079,0.00013735,2]
[331729283,1720707033764,-5390.25833766,0.00013736,2]
[331729284,1720707033774,-5817.0,0.00013748,2]
[331729285,1720707033784,-562.745,0.00013748,2]
[331729286,1720707033794,-5182.0,0.00013748,2]
[331729287,1720707033805,-1122.487,0.00013748,2]
[331729288,1720707033815,-1224.75,0.00013753,2]
[331729289,1720707033825,-1517.89,0.00013753,2]
[331729290,1720707033835,-1276.9,0.00013753,2]
[331729291,1720707033845,-1845.74,0.00013753,2]
[331729292,1720707033856,-1118.41,0.00013753,2]
[331729293,1720707033867,-1490.92,0.00013753,2]
[331729294,1720707033878,-1175.21,0.00013753,2]
[331729295,1720707033889,-1334.25,0.00013753,2]
[331729296,1720707033899,-871.01,0.00013753,2]
[331729297,1720707033915,-1676.83,0.00013753,2]
[331729298,1720707033926,-500.0,0.00013753,2]
[331729299,1720707033936,-1665.83,0.00013753,2]
[331729300,1720707033947,-1671.7,0.00013753,2]
[331729301,1720707033957,-425.23,0.00013753,7]
[331729302,1720707033966,-1254.44,0.00013753,2]
[331729303,1720707033978,-500.0,0.00013753,2]
[331729304,1720707033990,-500.0,0.00013753,2]
[331729305,1720707034000,-1467.21,0.00013753,2]
[331729306,1720707034010,-408.4598564,0.00013753,2]
[331729307,1720707034020,-1380.26,0.00013753,2]
[331729308,1720707034029,-1394.26,0.00013753,2]
[331729309,1720707034039,-1573.77,0.00013753,2]
[331729310,1720707034049,-1217.94,0.00013753,2]
[331729311,1720707034059,-1239.09,0.00013753,2]
[331729312,1720707034068,-285.06248761,0.00013753,2]
[331729313,1720707034078,-1252.4,0.00013753,2]
[331729314,1720707034088,-950.61,0.00013753,2]
[331729315,1720707034098,-1081.7,0.00013753,2]
[331729316,1720707034108,-861.96,0.00013753,2]
[331729317,1720707034118,-1218.57,0.00013753,2]
[331729318,1720707034126,-958.87,0.00013753,2]
[331729319,1720707034135,-1486.02966452,0.00013753,2]
[331729320,1720707034145,-1136.24889747,0.00013759,2]
[331729321,1720707034156,-1423.08283079,0.00013763,2]
[331729322,1720707034166,-217.60077216,0.0001379,2]
[331729323,1720707034177,-217.6007721,0.0001379,2]
[331729324,1720707034187,-217.6007721,0.0001379,2]
[331729325,1720707034197,-217.6007721,0.0001379,2]
[331729326,1720707034207,-1423.08283079,0.0001379,2]
[331729327,1720707034217,-217.6007721,0.00013796,2]
[331729328,1720707034226,-159.77421102,0.00013799,2]
[331729329,1720707034237,-679.8807,0.000138,2]
[331729330,1720707034246,-713749.80589736,0.000138,2]
[331729343,1720707037952,-500.0,0.00013799,2]
[331729344,1720707037961,-238.38224144,0.00013799,2]
[331729345,1720707037970,-446.9606463,0.00013799,2]
[331729346,1720707038187,-53.0393537,0.00013799,2]
[331729347,1720707038197,-500.0,0.00013799,2]
[331729348,1720707038206,-305.70688586,0.00013799,2]
[331729349,1720707038218,-120.58254663,0.00013799,2]
[331729350,1720707038227,-163.35745337,0.000138,2]
[331729351,1720707038238,-1214.80253227,0.000138,2]
[331729352,1720707038249,-285.375,0.000138,2]
[331729353,1720707038272,-1622.99,0.000138,2]
[331729393,1720707039997,-2550.50257882,0.000138,2]
[331729394,1720707040080,-131454.33764176,0.000138,2]
[331729395,1720707040091,-59841.20793247,0.000138,2]
[331729396,1720707040157,-2256.33146258,0.000138,2]
[331729397,1720707040168,-464.64,0.000138,2]
[331729398,1720707040223,-382.60523184,0.000138,2]
[331729399,1720707040234,-606.974984,0.000138,2]
[331729400,1720707040245,-642.62943153,0.000138,2]
[331729413,1720707042993,-155.36440833,0.00013574,2]
[331729414,1720707043003,-143.35559167,0.000138,2]
[331729419,1720707043060,-5658.86,0.000138,2]
[331729421,1720707043071,-881.66488014,0.000138,2]
[331729422,1720707043084,-498.09121075,0.000138,2]
[331729423,1720707043096,-495.87980047,0.000138,2]
[331729424,1720707043112,-362642.42009179,0.000138,2]
[331729426,1720707043125,-571.48088153,0.000138,2]
[331729428,1720707043136,-782.22733,0.000138,2]
[331729430,1720707043148,-4135.607814,0.000138,2]
[331729432,1720707043159,-8344.55784038,0.000138,2]
[331729435,1720707043171,-500.0,0.000138,2]
[331729436,1720707043182,-3774.08898326,0.000138,2]
[331729438,1720707043218,-1913.60066779,0.000138,2]
[331729441,1720707043269,-1662.404714,0.000138,2]
[331729442,1720707043280,-1025033.1178659,0.000138,2]
[331729446,1720707044931,-275.452,0.000138,2]
[331729447,1720707044967,-5958.007393,0.000138,2]
[331729448,1720707044986,-758.19771398,0.000138,2]
[331729449,1720707045004,-457.46219434,0.000138,2]
[331729450,1720707045017,-601.54580132,0.000138,2]
[331729451,1720707045029,-1267.53629767,0.000138,2]
[331729452,1720707045044,-2829.58704795,0.000138,2]
[331729453,1720707045061,-681.33207558,0.000138,2]
[331729455,1720707046247,-3721.04886316,0.000138,2]
[331729456,1720707046263,-5702.0,0.000138,2]
[331729457,1720707046278,-549.8742187,0.000138,2]
[331729458,1720707046362,-596100.03857662,0.000138,2]
[331729459,1720707046375,-659.54135158,0.00013802,2]
[331729460,1720707046387,-3367.13454146,0.00013804,2]
[331729461,1720707046399,-1224.75,0.00013808,2]
[331729462,1720707046411,-1517.89,0.00013808,2]
[331729463,1720707046423,-1276.9,0.00013808,2]
[331729464,1720707046435,-1845.74,0.00013808,2]
[331729465,1720707046452,-1118.41,0.00013808,2]
[331729466,1720707046463,-1490.92,0.00013808,2]
[331729467,1720707046477,-1175.21,0.00013808,2]
[331729468,1720707046488,-1334.25,0.00013808,2]
[331729469,1720707046500,-871.01,0.00013808,2]
[331729470,1720707046512,-1676.83,0.00013808,2]
[331729471,1720707046524,-500.0,0.00013808,2]
[331729472,1720707046535,-1665.83,0.00013808,2]
[331729473,1720707046546,-1671.7,0.00013808,2]
[331729474,1720707046558,-425.23,0.00013808,7]
[331729475,1720707046570,-1254.44,0.00013808,2]
[331729476,1720707046583,-645.53,0.00013808,2]
[331729477,1720707046595,-547.11163711,0.00013808,2]
[331729478,1720707046606,-1467.21,0.00013808,2]
[331729479,1720707046618,-1380.26,0.00013808,2]
[331729480,1720707046630,-1394.26,0.00013808,2]
[331729481,1720707046642,-1573.77,0.00013808,2]
[331729482,1720707046654,-1217.94,0.00013808,2]
[331729483,1720707046665,-1239.09,0.00013808,2]
[331729484,1720707046678,-1252.4,0.00013808,2]
[331729487,1720707046810,-950.61,0.00013808,2]
[331729488,1720707046825,-1081.7,0.00013808,2]
[331729489,1720707046835,-861.96,0.00013808,2]
[331729490,1720707046845,-1218.57,0.00013808,2]
[331729491,1720707046857,-958.87,0.00013808,2]
[331729492,1720707046867,-1486.02966452,0.00013808,2]
[331729493,1720707046877,-217.6007721,0.00013817,2]
[331729494,1720707046888,-1423.08283079,0.00013818,2]
[331729495,1720707046898,-420.0,0.00013823,2]
[331729496,1720707046909,-217.6007721,0.00013838,2]
[331729497,1720707046922,-1423.08283079,0.00013845,2]
[331729498,1720707046932,-3113.03843627,0.00013849,2]
[331729499,1720707046947,-217.6007721,0.00013858,2]
[331729500,1720707046958,-715.49615,0.0001386,2]
[331729501,1720707046968,-1224.75,0.00013863,2]
[331729502,1720707046978,-1517.89,0.00013863,2]
[331729503,1720707046987,-1276.9,0.00013863,2]
[331729504,1720707046998,-1845.74,0.00013863,2]
[331729505,1720707047009,-1118.41,0.00013863,2]
[331729506,1720707047018,-1490.92,0.00013863,2]
[331729507,1720707047027,-1175.21,0.00013863,2]
[331729508,1720707047037,-1334.25,0.00013863,2]
[331729509,1720707047047,-871.01,0.00013863,2]
[331729510,1720707047057,-1676.83,0.00013863,2]
[331729511,1720707047066,-500.0,0.00013863,2]
[331729512,1720707047076,-1665.83,0.00013863,2]
[331729513,1720707047086,-1671.7,0.00013863,2]
[331729514,1720707047096,-425.23,0.00013863,7]
[331729515,1720707047105,-1254.44,0.00013863,2]
[331729516,1720707047115,-1467.21,0.00013863,2]
[331729517,1720707047125,-1380.26,0.00013863,2]
[331729518,1720707047134,-1394.26,0.00013863,2]
[331729519,1720707047143,-1573.77,0.00013863,2]
[331729520,1720707047152,-1217.94,0.00013863,2]
[331729521,1720707047162,-1239.09,0.00013863,2]
[331729522,1720707047171,-1252.4,0.00013863,2]
[331729523,1720707047181,-950.61,0.00013863,2]
[331729524,1720707047190,-1081.7,0.00013863,2]
[331729525,1720707047206,-861.96,0.00013863,2]
[331729526,1720707047216,-1218.57,0.00013863,2]
[331729527,1720707047225,-958.87,0.00013863,2]
[331729528,1720707047235,-1486.02966452,0.00013863,2]
[331729529,1720707047246,-1423.08283079,0.00013873,2]
[331729530,1720707047256,-217.6007721,0.00013879,2]
[331729531,1720707047266,-3000.0,0.00013888,2]
[331729532,1720707047275,-500.0,0.00013888,2]
[331729533,1720707047285,-200.0,0.00013888,2]
[331729534,1720707047296,-156.31937905,0.00013889,2]
[331729535,1720707047306,-240.73383763,0.00013889,2]
[331729536,1720707047316,-409.71544705,0.00013898,2]
[331729537,1720707047325,-500.0,0.00013898,2]
[331729538,1720707047335,-500.0,0.00013898,2]
[331729539,1720707047345,-182.27,0.00013898,2]
[331729540,1720707047355,-500.0,0.00013898,2]
[331729541,1720707047365,-437.47229663,0.00013898,2]
[331729542,1720707047375,-500.0,0.00013898,2]
[331729543,1720707047384,-532.77541259,0.00013898,2]
[331729544,1720707047394,-500.0,0.00013898,2]
[331729545,1720707047404,-211328.77106514,0.00013899,2]
[331729546,1720707047414,-160.13713916,0.00013899,2]
[331729547,1720707047424,-123656.89373317,0.000139,2]
[331729548,1720707047436,-536.814937,0.000139,2]
[331729549,1720707047463,-120806.29132983,0.000139,2]
[331729550,1720707047473,-6950.4756,0.000139,2]
[331729551,1720707047482,-10000.0,0.000139,2]
[331729552,1720707047492,-217.6007721,0.000139,2]
[331729553,1720707047501,-159.77421102,0.000139,2]
[331729554,1720707047511,-3367.13454146,0.000139,2]
[331729555,1720707047521,-1423.08283079,0.000139,2]
[331729556,1720707047530,-659.54135158,0.000139,2]
[331729557,1720707047540,-1224.75,0.00013917,2]
[331729558,1720707047550,-1517.89,0.00013917,2]
[331729559,1720707047560,-1276.9,0.00013917,2]
[331729560,1720707047570,-1845.74,0.00013917,2]
[331729561,1720707047580,-1118.41,0.00013917,2]
[331729562,1720707047590,-1490.92,0.00013917,2]
[331729563,1720707047600,-1175.21,0.00013917,2]
[331729564,1720707047610,-1334.25,0.00013917,2]
[331729565,1720707047619,-871.01,0.00013917,2]
[331729566,1720707047629,-1676.83,0.00013917,2]
[331729567,1720707047638,-500.0,0.00013917,2]
[331729568,1720707047649,-1665.83,0.00013917,2]
[331729569,1720707047658,-1671.7,0.00013917,2]
[331729570,1720707047668,-425.23,0.00013917,7]
[331729571,1720707047678,-1254.44,0.00013917,2]
[331729572,1720707047687,-1467.21,0.00013917,2]
[331729573,1720707047702,-1380.26,0.00013917,2]
[331729574,1720707047712,-1394.26,0.00013917,2]
[331729575,1720707047722,-1573.77,0.00013917,2]
[331729576,1720707047732,-1217.94,0.00013917,2]
[331729577,1720707047742,-1239.09,0.00013917,2]
[331729578,1720707047752,-1252.4,0.00013917,2]
[331729579,1720707047762,-950.61,0.00013917,2]
[331729580,1720707047772,-1081.7,0.00013917,2]
[331729581,1720707047782,-861.96,0.00013917,2]
[331729582,1720707047792,-1218.57,0.00013917,2]
[331729583,1720707047801,-958.87,0.00013917,2]
[331729584,1720707047811,-1486.02966452,0.00013918,2]
[331729585,1720707047820,-500.0,0.00013939,2]
[331729586,1720707047830,-500.0,0.00013939,2]
[331729587,1720707047840,-609.91198666,0.00013939,2]
[331729588,1720707047850,-150.0,0.0001394,2]
[331729589,1720707047859,-361.0,0.0001394,2]
[331729590,1720707047869,-1830.0,0.0001394,2]
[331729591,1720707047879,-1659.0,0.0001394,2]
[331729592,1720707047889,-500.0,0.00013953,2]
[331729593,1720707047898,-500.0,0.00013953,2]
[331729594,1720707047908,-216.04818389,0.00013953,2]
[331729595,1720707047918,-500.0,0.00013953,2]
[331729596,1720707047931,-1224.75,0.00013972,2]
[331729597,1720707047941,-1517.89,0.00013972,2]
[331729598,1720707047954,-1276.9,0.00013972,2]
[331729599,1720707047965,-1845.74,0.00013972,2]
[331729600,1720707047975,-1118.41,0.00013972,2]
[331729601,1720707047985,-1490.92,0.00013972,2]
[331729602,1720707047994,-1175.21,0.00013972,2]
[331729603,1720707048003,-1334.25,0.00013972,2]
[331729604,1720707048012,-871.01,0.00013972,2]
[331729605,1720707048021,-1676.83,0.00013972,2]
[331729606,1720707048031,-500.0,0.00013972,2]
[331729607,1720707048040,-1665.83,0.00013972,2]
[331729608,1720707048050,-1671.7,0.00013972,2]
[331729609,1720707048059,-425.23,0.00013972,7]
[331729610,1720707048069,-1254.44,0.00013972,2]
[331729611,1720707048079,-1467.21,0.00013972,2]
[331729612,1720707048088,-1380.26,0.00013972,2]
[331729613,1720707048098,-1394.26,0.00013972,2]
[331729614,1720707048107,-1573.77,0.00013972,2]
[331729615,1720707048116,-1217.94,0.00013972,2]
[331729616,1720707048126,-1239.09,0.00013972,2]
[331729617,1720707048135,-1252.4,0.00013972,2]
[331729618,1720707048144,-950.61,0.00013972,2]
[331729619,1720707048154,-1081.7,0.00013972,2]